[Event "*** Titled Tuesday Blitz"]
[Site "Chess.com"]
[Date "2019.03.05"]
[Round "4"]
[White "Didici"]
[Black "goodluck06"]
[Result "1/2-1/2"]
[WhiteElo "2554"]
[BlackElo "2426"]
[TimeControl "180+2"]
[EndTime "13:58:59 PST"]
[Termination "Game drawn by agreement"]

1. d4 {[%clk 0:01:32.6]} 1... Nf6 {[%clk 0:02:58.8]} 2. c4 {[%clk 0:01:30]} 2...
e6 {[%clk 0:02:59.7]} 3. Nc3 {[%clk 0:01:29.3]} 3... Bb4 {[%clk 0:03:00.2]} 4.
g3 {[%clk 0:01:26.2]} 4... d5 {[%clk 0:02:59.1]} 5. Bg2 {[%clk 0:01:26.3]} 5...
O-O {[%clk 0:02:59.8]} 6. Nf3 {[%clk 0:01:26.8]} 6... dxc4 {[%clk 0:03:00.5]} 7.
O-O {[%clk 0:01:27.6]} 7... Nc6 {[%clk 0:02:55]} 8. Qa4 {[%clk 0:01:29]} 8... a6
{[%clk 0:02:52]} 9. Rd1 {[%clk 0:00:56.6]} 9... b5 {[%clk 0:02:46.2]} 10. Nxb5
{[%clk 0:00:45.6]} 10... axb5 {[%clk 0:01:59.4]} 11. Qxa8 {[%clk 0:00:28]} 11...
Qd7 {[%clk 0:01:57.2]} 12. Bg5 {[%clk 0:00:24.4]} 12... Nd5 {[%clk 0:01:57.9]}
13. Ne5 {[%clk 0:00:21.5]} 13... Nxe5 {[%clk 0:01:47.4]} 14. dxe5 {[%clk
0:00:23.4]} 14... c6 {[%clk 0:01:33.8]} 15. e4 {[%clk 0:00:14.7]} 15... Bb7
{[%clk 0:01:24.8]} 16. Qa7 {[%clk 0:00:15.6]} 16... Ra8 {[%clk 0:01:25.7]} 17.
Qd4 {[%clk 0:00:16.6]} 17... c5 {[%clk 0:01:19.7]} 18. Qe3 {[%clk 0:00:17.2]}
18... Nxe3 {[%clk 0:00:58.7]} 19. Rxd7 {[%clk 0:00:19.1]} 19... Bc6 {[%clk
0:01:00.3]} 20. Rc7 {[%clk 0:00:20.3]} 20... Nc2 {[%clk 0:00:58]} 21. Rc1 {[%clk
0:00:20.8]} 21... Nd4 {[%clk 0:00:58.7]} 22. a3 {[%clk 0:00:19.6]} 22... Ba5
{[%clk 0:00:58.5]} 23. Rxc6 {[%clk 0:00:18.3]} 23... Nxc6 {[%clk 0:00:58.2]} 24.
Be3 {[%clk 0:00:20.2]} 24... Bb6 {[%clk 0:00:57.7]} 25. f4 {[%clk 0:00:20.5]}
25... Nd4 {[%clk 0:00:57.7]} 26. Kf2 {[%clk 0:00:21.6]} 26... Kf8 {[%clk
0:00:58.6]} 27. Bf1 {[%clk 0:00:22.4]} 27... Ke7 {[%clk 0:00:56.6]} 28. g4
{[%clk 0:00:23.4]} 28... Rd8 {[%clk 0:00:53.4]} 29. h4 {[%clk 0:00:24.3]} 29...
Nb3 {[%clk 0:00:54.2]} 30. Rb1 {[%clk 0:00:24.3]} 30... h5 {[%clk 0:00:49]} 31.
gxh5 {[%clk 0:00:24.5]} 31... Nd4 {[%clk 0:00:48.1]} 32. Be2 {[%clk 0:00:20.8]}
32... Rh8 {[%clk 0:00:44.2]} 33. Rg1 {[%clk 0:00:20.6]} 33... Nxe2 {[%clk
0:00:44]} 34. Kxe2 {[%clk 0:00:22.5]} 34... Rxh5 {[%clk 0:00:45.5]} 35. Bf2
{[%clk 0:00:22.1]} 35... g6 {[%clk 0:00:45.8]} 36. Kd2 {[%clk 0:00:19.8]} 36...
Rh8 {[%clk 0:00:46.1]} 37. Kc3 {[%clk 0:00:20.6]} 37... Rd8 {[%clk 0:00:43.7]}
38. Kc2 {[%clk 0:00:21.4]} 38... Rd3 {[%clk 0:00:41.1]} 39. Rg3 {[%clk
0:00:22.5]} 39... Rxg3 {[%clk 0:00:31.2]} 40. Bxg3 {[%clk 0:00:24.4]} 40... Kd7
{[%clk 0:00:32.7]} 41. Bf2 {[%clk 0:00:25.3]} 41... Kc6 {[%clk 0:00:33.8]} 42.
Kc3 {[%clk 0:00:26.4]} 42... Ba5+ {[%clk 0:00:34.6]} 43. Kc2 {[%clk 0:00:27.1]}
43... Bd8 {[%clk 0:00:36.2]} 44. Kc3 {[%clk 0:00:27.8]} 44... Ba5+ {[%clk
0:00:34.3]} 45. Kc2 {[%clk 0:00:28.4]} 45... b4 {[%clk 0:00:36]} 46. a4 {[%clk
0:00:26.4]} 46... Bd8 {[%clk 0:00:36.8]} 47. b3 {[%clk 0:00:26.3]} 47... c3
{[%clk 0:00:33.4]} 48. Kd3 {[%clk 0:00:27]} 48... Bb6 {[%clk 0:00:31.4]} 49. Be1
{[%clk 0:00:27.2]} 49... c4+ {[%clk 0:00:21.1]} 50. Kxc4 {[%clk 0:00:28]} 50...
Be3 {[%clk 0:00:22.8]} 51. Kd3 {[%clk 0:00:23.8]} 51... Bxf4 {[%clk 0:00:23.5]}
52. Bf2 {[%clk 0:00:23.4]} 52... Bxe5 {[%clk 0:00:24.2]} 53. Be3 {[%clk
0:00:24.6]} 53... Bf6 {[%clk 0:00:23.1]} 54. Bf2 {[%clk 0:00:23.7]} 54... Kb7
{[%clk 0:00:20.1]} 55. Be1 {[%clk 0:00:24.1]} 55... Ka6 {[%clk 0:00:21.2]} 56.
Bf2 {[%clk 0:00:25.1]} 56... Be5 {[%clk 0:00:22.5]} 57. Kc4 {[%clk 0:00:24.3]}
57... Bf4 {[%clk 0:00:22]} 58. Kd3 {[%clk 0:00:24.7]} 58... g5 {[%clk
0:00:21.3]} 59. hxg5 {[%clk 0:00:24.5]} 59... Bxg5 {[%clk 0:00:22.3]} 60. Bc5
{[%clk 0:00:25.5]} 60... Ka5 {[%clk 0:00:23.7]} 61. Bd6 {[%clk 0:00:23.3]} 61...
f5 {[%clk 0:00:24.3]} 62. exf5 {[%clk 0:00:23.4]} 62... exf5 {[%clk 0:00:26.2]}
63. Bc5 {[%clk 0:00:21.1]} 63... Bd8 {[%clk 0:00:25.6]} 64. Kc4 {[%clk
0:00:21.6]} 64... Bg5 {[%clk 0:00:20.9]} 65. Bxb4+ {[%clk 0:00:22.4]} 65... Ka6
{[%clk 0:00:22.6]} 66. Bxc3 {[%clk 0:00:23.6]} 66... Be7 {[%clk 0:00:24.2]} 67.
Be5 {[%clk 0:00:24.3]} 67... Kb6 {[%clk 0:00:24.4]} 68. b4 {[%clk 0:00:25.4]}
68... Kc6 {[%clk 0:00:25.7]} 69. Bd4 {[%clk 0:00:24.7]} 69... Bxb4 {[%clk
0:00:23.6]} 70. Kxb4 {[%clk 0:00:25]} 70... f4 {[%clk 0:00:25.5]} 71. Kc4 {[%clk
0:00:25.5]} 71... f3 {[%clk 0:00:25.4]} 72. Bf2 {[%clk 0:00:26.4]} 72... Kb7
{[%clk 0:00:26.9]} 73. Kb5 {[%clk 0:00:27.3]} 73... Ka8 {[%clk 0:00:28.4]} 74.
Kb6 {[%clk 0:00:28.6]} 74... Kb8 {[%clk 0:00:29.6]} 75. a5 {[%clk 0:00:29.7]}
75... Ka8 {[%clk 0:00:31.5]} 76. Ka6 {[%clk 0:00:30.7]} 76... Kb8 {[%clk
0:00:32.3]} 77. Bg3+ {[%clk 0:00:32.5]} 77... Ka8 {[%clk 0:00:33.1]} 1/2-1/2

[Event "*** Titled Tuesday Blitz"]
[Site "Chess.com"]
[Date "2019.03.05"]
[Round "4"]
[White "mlchen"]
[Black "kosya4ok"]
[Result "0-1"]
[WhiteElo "2470"]
[BlackElo "2673"]
[TimeControl "180+2"]
[EndTime "13:59:09 PST"]
[Termination "kosya4ok won by resignation"]

1. e4 {[%clk 0:03:01.9]} 1... c6 {[%clk 0:02:59.4]} 2. d4 {[%clk 0:03:02.8]}
2... d5 {[%clk 0:03:00.5]} 3. exd5 {[%clk 0:03:04.4]} 3... cxd5 {[%clk
0:03:01.3]} 4. c4 {[%clk 0:03:05.8]} 4... Nf6 {[%clk 0:03:02.1]} 5. Nc3 {[%clk
0:03:06.6]} 5... Nc6 {[%clk 0:03:03.2]} 6. Nf3 {[%clk 0:03:07.9]} 6... Be6
{[%clk 0:03:03.2]} 7. cxd5 {[%clk 0:03:05.4]} 7... Bxd5 {[%clk 0:03:03.9]} 8.
Be2 {[%clk 0:02:48.7]} 8... e6 {[%clk 0:03:03.3]} 9. O-O {[%clk 0:02:48.7]} 9...
Be7 {[%clk 0:03:04.4]} 10. Ne5 {[%clk 0:02:43.3]} 10... O-O {[%clk 0:02:29.1]}
11. Be3 {[%clk 0:02:39.4]} 11... Rc8 {[%clk 0:02:26.1]} 12. Rc1 {[%clk
0:02:39.1]} 12... Qa5 {[%clk 0:02:17]} 13. Nxd5 {[%clk 0:01:59.5]} 13... Nxd5
{[%clk 0:02:17.7]} 14. Nxc6 {[%clk 0:01:55.1]} 14... bxc6 {[%clk 0:02:19.6]} 15.
Bd2 {[%clk 0:01:38]} 15... Qxa2 {[%clk 0:02:06]} 16. b3 {[%clk 0:01:37.2]} 16...
Qb2 {[%clk 0:01:52.5]} 17. Be1 {[%clk 0:01:22.9]} 17... Bf6 {[%clk 0:01:45.3]}
18. Rc4 {[%clk 0:01:23.1]} 18... Nb6 {[%clk 0:01:37.3]} 19. Bc3 {[%clk
0:01:09.8]} 19... Qa2 {[%clk 0:01:38.1]} 20. Rc5 {[%clk 0:01:10]} 20... Nd5
{[%clk 0:01:25]} 21. Ra5 {[%clk 0:00:49.9]} 21... Nxc3 {[%clk 0:01:18.8]} 22.
Rxa2 {[%clk 0:00:51]} 22... Nxd1 {[%clk 0:01:19.6]} 23. Rxd1 {[%clk 0:00:52.6]}
23... Rc7 {[%clk 0:01:20.2]} 24. Ra6 {[%clk 0:00:52.5]} 24... Rb8 {[%clk
0:01:16.8]} 25. Rd3 {[%clk 0:00:43.3]} 25... g6 {[%clk 0:00:54.7]} 26. Kf1
{[%clk 0:00:40.1]} 26... Rb4 {[%clk 0:00:33]} 27. Ra4 {[%clk 0:00:22.9]} 27...
Rxa4 {[%clk 0:00:28.6]} 28. bxa4 {[%clk 0:00:24.8]} 28... Rb7 {[%clk 0:00:29.6]}
29. Bf3 {[%clk 0:00:25.7]} 29... Rb1+ {[%clk 0:00:23.6]} 30. Ke2 {[%clk
0:00:26.1]} 30... Rb2+ {[%clk 0:00:24.9]} 31. Ke3 {[%clk 0:00:16.6]} 31... Bg5+
{[%clk 0:00:21]} 32. Ke4 {[%clk 0:00:17.9]} 32... Rxf2 {[%clk 0:00:21.7]} 33.
Rc3 {[%clk 0:00:17]} 33... Ra2 {[%clk 0:00:21.2]} 34. Rc4 {[%clk 0:00:12.6]}
34... Ra3 {[%clk 0:00:22.3]} 35. Ke5 {[%clk 0:00:12.5]} 35... Be7 {[%clk
0:00:17.6]} 36. Bxc6 {[%clk 0:00:12.1]} 36... a5 {[%clk 0:00:16.7]} 37. d5
{[%clk 0:00:07.7]} 37... exd5 {[%clk 0:00:17.6]} 38. Bxd5 {[%clk 0:00:08.6]}
38... Re3+ {[%clk 0:00:18]} 39. Kf4 {[%clk 0:00:09.7]} 39... Re2 {[%clk
0:00:19]} 40. Kf3 {[%clk 0:00:10.8]} 40... Rd2 {[%clk 0:00:19.1]} 41. Bc6 {[%clk
0:00:11.2]} 41... Bf6 {[%clk 0:00:18.8]} 42. Rf4 {[%clk 0:00:11.2]} 42... Be5
{[%clk 0:00:17.6]} 43. Rh4 {[%clk 0:00:09.8]} 43... f5 {[%clk 0:00:16]} 44. h3
{[%clk 0:00:10.2]} 44... f4 {[%clk 0:00:15.3]} 45. Rg4 {[%clk 0:00:11.4]} 45...
Kg7 {[%clk 0:00:15.9]} 46. h4 {[%clk 0:00:11.2]} 46... Kf6 {[%clk 0:00:17]} 47.
h5 {[%clk 0:00:11.7]} 47... g5 {[%clk 0:00:17.6]} 48. Be4 {[%clk 0:00:11.9]}
48... h6 {[%clk 0:00:17.7]} 49. Bc6 {[%clk 0:00:12.7]} 49... Rc2 {[%clk
0:00:13.4]} 50. Bb5 {[%clk 0:00:13.1]} 50... Rc3+ {[%clk 0:00:13.6]} 51. Ke2
{[%clk 0:00:13.9]} 51... Re3+ {[%clk 0:00:14.2]} 52. Kf2 {[%clk 0:00:14.7]}
52... Bd4 {[%clk 0:00:14.7]} 53. Kf1 {[%clk 0:00:15.7]} 53... Re7 {[%clk
0:00:14.7]} 54. Bc6 {[%clk 0:00:15.4]} 54... Kf5 {[%clk 0:00:15.2]} 55. Bf3
{[%clk 0:00:16.2]} 55... Re3 {[%clk 0:00:14.9]} 56. Bd1 {[%clk 0:00:16.2]} 56...
Rc3 {[%clk 0:00:15.9]} 57. Bf3 {[%clk 0:00:16.9]} 57... Rc4 {[%clk 0:00:15.8]}
58. g3 {[%clk 0:00:17.7]} 58... fxg3 {[%clk 0:00:07.9]} 59. Kg2 {[%clk
0:00:18.3]} 59... Rxa4 {[%clk 0:00:08]} 60. Kxg3 {[%clk 0:00:19.7]} 60... Be5+
{[%clk 0:00:08.3]} 61. Kh3 {[%clk 0:00:20.5]} 61... Rxg4 {[%clk 0:00:08.4]} 62.
Bxg4+ {[%clk 0:00:22.4]} 62... Ke4 {[%clk 0:00:09]} 63. Be6 {[%clk 0:00:21.6]}
63... a4 {[%clk 0:00:08.5]} 64. Kg4 {[%clk 0:00:22.7]} 64... a3 {[%clk
0:00:09.7]} 65. Bf7 {[%clk 0:00:22.8]} 65... Kd4 {[%clk 0:00:10.1]} 66. Kf5
{[%clk 0:00:22.6]} 66... Bf4 {[%clk 0:00:11.4]} 67. Kg4 {[%clk 0:00:23.2]} 67...
Kc3 {[%clk 0:00:11.8]} 68. Kf5 {[%clk 0:00:23.1]} 68... Kb2 {[%clk 0:00:13.7]}
69. Kg6 {[%clk 0:00:24.5]} 69... Bc1 {[%clk 0:00:12.7]} 70. Kxh6 {[%clk
0:00:13.8]} 70... g4+ {[%clk 0:00:13.4]} 71. Kg6 {[%clk 0:00:14.8]} 71... g3
{[%clk 0:00:14.5]} 72. Bd5 {[%clk 0:00:15.5]} 72... a2 {[%clk 0:00:14.8]} 73. h6
{[%clk 0:00:15.4]} 73... Bxh6 {[%clk 0:00:14.1]} 74. Bxa2 {[%clk 0:00:15.7]}
74... Kxa2 {[%clk 0:00:14.1]} 0-1

[Event "*** Titled Tuesday Blitz"]
[Site "Chess.com"]
[Date "2019.03.05"]
[Round "4"]
[White "mikhaillushenkov"]
[Black "aridannie"]
[Result "1/2-1/2"]
[WhiteElo "2605"]
[BlackElo "2370"]
[TimeControl "180+2"]
[EndTime "13:59:15 PST"]
[Termination "Game drawn - insufficient material"]

1. Nf3 {[%clk 0:03:01.9]} 1... Nf6 {[%clk 0:02:59.8]} 2. c4 {[%clk 0:03:03]}
2... g6 {[%clk 0:02:58]} 3. b3 {[%clk 0:03:00.8]} 3... Bg7 {[%clk 0:02:58.9]} 4.
Bb2 {[%clk 0:03:01.4]} 4... O-O {[%clk 0:03:00.1]} 5. g3 {[%clk 0:02:54.7]} 5...
d6 {[%clk 0:03:01]} 6. d4 {[%clk 0:02:51.9]} 6... e5 {[%clk 0:03:01.1]} 7. dxe5
{[%clk 0:02:50.6]} 7... dxe5 {[%clk 0:03:03]} 8. Qxd8 {[%clk 0:02:46.7]} 8...
Rxd8 {[%clk 0:03:04.9]} 9. Nxe5 {[%clk 0:02:10.5]} 9... Nfd7 {[%clk 0:02:57.8]}
10. Nd3 {[%clk 0:02:10.2]} 10... Nc6 {[%clk 0:02:54.3]} 11. Bxg7 {[%clk
0:02:10.3]} 11... Kxg7 {[%clk 0:02:56.1]} 12. Nc3 {[%clk 0:02:02.5]} 12... Nde5
{[%clk 0:02:49]} 13. Nxe5 {[%clk 0:02:00]} 13... Nxe5 {[%clk 0:02:50.8]} 14. Bg2
{[%clk 0:02:01.3]} 14... c6 {[%clk 0:02:51.1]} 15. Rd1 {[%clk 0:02:01.2]} 15...
Be6 {[%clk 0:02:48.9]} 16. h3 {[%clk 0:01:57.7]} 16... h5 {[%clk 0:02:45.8]} 17.
e3 {[%clk 0:01:29.8]} 17... Nd3+ {[%clk 0:02:43.9]} 18. Ke2 {[%clk 0:01:29.3]}
18... Nb4 {[%clk 0:02:40]} 19. Rxd8 {[%clk 0:01:25.5]} 19... Rxd8 {[%clk
0:02:40.3]} 20. Rd1 {[%clk 0:01:26.4]} 20... Re8 {[%clk 0:02:39.6]} 21. h4
{[%clk 0:01:14.1]} 21... Bf5 {[%clk 0:02:37]} 22. e4 {[%clk 0:00:42.2]} 22...
Be6 {[%clk 0:02:32.8]} 23. a3 {[%clk 0:00:39.9]} 23... Na6 {[%clk 0:02:26.1]}
24. Ke3 {[%clk 0:00:36.4]} 24... Nc5 {[%clk 0:02:19.7]} 25. b4 {[%clk
0:00:36.7]} 25... Nd7 {[%clk 0:02:17.8]} 26. c5 {[%clk 0:00:37.6]} 26... Ne5
{[%clk 0:02:18.1]} 27. Bf1 {[%clk 0:00:31.4]} 27... Ng4+ {[%clk 0:02:12.3]} 28.
Ke2 {[%clk 0:00:29.4]} 28... Ne5 {[%clk 0:02:00.5]} 29. Kd2 {[%clk 0:00:22.7]}
29... Bb3 {[%clk 0:01:55.6]} 30. Re1 {[%clk 0:00:21.6]} 30... Nf3+ {[%clk
0:01:55.8]} 31. Ke2 {[%clk 0:00:21.6]} 31... Nxe1 {[%clk 0:01:56.6]} 32. Kxe1
{[%clk 0:00:23.4]} 32... f5 {[%clk 0:01:56.1]} 33. f3 {[%clk 0:00:24.1]} 33...
fxe4 {[%clk 0:01:56.9]} 34. fxe4 {[%clk 0:00:26]} 34... Kf6 {[%clk 0:01:55.2]}
35. Kd2 {[%clk 0:00:21.4]} 35... Ke5 {[%clk 0:01:53.2]} 36. Ke3 {[%clk
0:00:22.8]} 36... Rd8 {[%clk 0:01:49.1]} 37. Bd3 {[%clk 0:00:23.8]} 37... Be6
{[%clk 0:01:46.9]} 38. Ne2 {[%clk 0:00:24.6]} 38... Bf7 {[%clk 0:01:40.5]} 39.
Ng1 {[%clk 0:00:24.3]} 39... Be8 {[%clk 0:01:30.6]} 40. Nf3+ {[%clk 0:00:25.4]}
40... Kf6 {[%clk 0:01:31.8]} 41. e5+ {[%clk 0:00:25.9]} 41... Ke7 {[%clk
0:01:32.8]} 42. Nd4 {[%clk 0:00:23]} 42... Bf7 {[%clk 0:01:31.6]} 43. Ne2 {[%clk
0:00:23.7]} 43... a5 {[%clk 0:01:07.8]} 44. b5 {[%clk 0:00:23]} 44... Rd5 {[%clk
0:01:04.5]} 45. bxc6 {[%clk 0:00:16.5]} 45... bxc6 {[%clk 0:01:02.9]} 46. Nf4
{[%clk 0:00:17.1]} 46... Rxe5+ {[%clk 0:00:55.4]} 47. Kd4 {[%clk 0:00:19]} 47...
Re1 {[%clk 0:00:54.7]} 48. Bxg6 {[%clk 0:00:19.6]} 48... Ra1 {[%clk 0:00:40.7]}
49. Bxh5 {[%clk 0:00:19.5]} 49... Rxa3 {[%clk 0:00:40.6]} 50. Bxf7 {[%clk
0:00:20.6]} 50... Kxf7 {[%clk 0:00:41.3]} 51. Ne2 {[%clk 0:00:17.4]} 51... Ra2
{[%clk 0:00:39.9]} 52. Nc3 {[%clk 0:00:18.7]} 52... Rg2 {[%clk 0:00:39]} 53. Ne4
{[%clk 0:00:20.2]} 53... Ke6 {[%clk 0:00:32.9]} 54. h5 {[%clk 0:00:17.9]} 54...
Kf5 {[%clk 0:00:25.9]} 55. h6 {[%clk 0:00:18.2]} 55... Rh2 {[%clk 0:00:24.8]}
56. Nd6+ {[%clk 0:00:16.5]} 56... Ke6 {[%clk 0:00:24]} 57. Nc4 {[%clk
0:00:17.7]} 57... a4 {[%clk 0:00:22.1]} 58. Kc3 {[%clk 0:00:18.9]} 58... Rxh6
{[%clk 0:00:21]} 59. Kb4 {[%clk 0:00:20.5]} 59... Rh3 {[%clk 0:00:19.8]} 60.
Kxa4 {[%clk 0:00:21.6]} 60... Rxg3 {[%clk 0:00:20.9]} 61. Nb6 {[%clk 0:00:22.5]}
61... Rc3 {[%clk 0:00:16.1]} 62. Kb4 {[%clk 0:00:23.6]} 62... Rc1 {[%clk
0:00:17.1]} 63. Nc8 {[%clk 0:00:23]} 63... Ke5 {[%clk 0:00:14.9]} 64. Ne7 {[%clk
0:00:22.6]} 64... Rb1+ {[%clk 0:00:12.2]} 65. Kc4 {[%clk 0:00:23.8]} 65... Rc1+
{[%clk 0:00:13.3]} 66. Kb4 {[%clk 0:00:25.1]} 66... Rxc5 {[%clk 0:00:09.9]} 67.
Kxc5 {[%clk 0:00:26]} 67... Ke6 {[%clk 0:00:08.3]} 68. Nxc6 {[%clk 0:00:27.9]}
1/2-1/2

[Event "*** Titled Tuesday Blitz"]
[Site "Chess.com"]
[Date "2019.03.05"]
[Round "4"]
[White "DrVitman"]
[Black "gmcorrales"]
[Result "1/2-1/2"]
[WhiteElo "2653"]
[BlackElo "2702"]
[TimeControl "180+2"]
[EndTime "13:59:16 PST"]
[Termination "Game drawn by repetition"]

1. d4 {[%clk 0:03:01.9]} 1... Nf6 {[%clk 0:02:59.1]} 2. Nf3 {[%clk 0:03:02.6]}
2... g6 {[%clk 0:02:59.3]} 3. Bf4 {[%clk 0:03:02.8]} 3... Bg7 {[%clk 0:02:56.7]}
4. e3 {[%clk 0:03:03.6]} 4... O-O {[%clk 0:02:51.4]} 5. h3 {[%clk 0:03:04.1]}
5... b6 {[%clk 0:02:50.7]} 6. Be2 {[%clk 0:03:03.5]} 6... Bb7 {[%clk 0:02:52]}
7. O-O {[%clk 0:03:03.9]} 7... c5 {[%clk 0:02:53.2]} 8. c3 {[%clk 0:03:04.2]}
8... d5 {[%clk 0:02:54.2]} 9. Nbd2 {[%clk 0:03:02.1]} 9... Nc6 {[%clk
0:02:54.9]} 10. Ne5 {[%clk 0:02:47.2]} 10... Nd7 {[%clk 0:02:43.9]} 11. Nxc6
{[%clk 0:02:37.9]} 11... Bxc6 {[%clk 0:02:45.8]} 12. Nf3 {[%clk 0:02:33.4]}
12... Re8 {[%clk 0:02:42.5]} 13. Qb3 {[%clk 0:02:28.1]} 13... a6 {[%clk
0:01:14.7]} 14. Rad1 {[%clk 0:02:25]} 14... c4 {[%clk 0:01:13.1]} 15. Qc2 {[%clk
0:02:24.3]} 15... b5 {[%clk 0:01:14.1]} 16. a3 {[%clk 0:02:09]} 16... a5 {[%clk
0:01:14.4]} 17. Ra1 {[%clk 0:02:09.8]} 17... Qb6 {[%clk 0:01:14.3]} 18. Qd2
{[%clk 0:02:04.7]} 18... e6 {[%clk 0:01:11.3]} 19. Ne5 {[%clk 0:02:01.7]} 19...
Nxe5 {[%clk 0:01:10.8]} 20. Bxe5 {[%clk 0:02:03.2]} 20... Bxe5 {[%clk
0:01:06.1]} 21. dxe5 {[%clk 0:02:05.1]} 21... b4 {[%clk 0:00:59.8]} 22. axb4
{[%clk 0:02:04.2]} 22... axb4 {[%clk 0:01:00.7]} 23. Qd4 {[%clk 0:02:02.2]}
23... Rab8 {[%clk 0:00:46.5]} 24. Rfc1 {[%clk 0:01:33.9]} 24... bxc3 {[%clk
0:00:47.1]} 25. bxc3 {[%clk 0:01:34.1]} 25... Qb2 {[%clk 0:00:46.9]} 26. Bf3
{[%clk 0:01:24.1]} 26... Red8 {[%clk 0:00:25.3]} 27. h4 {[%clk 0:01:24]} 27...
Qb6 {[%clk 0:00:14.2]} 28. Qf4 {[%clk 0:01:23.9]} 28... Qc7 {[%clk 0:00:14.4]}
29. h5 {[%clk 0:01:22.8]} 29... Qe7 {[%clk 0:00:15]} 30. h6 {[%clk 0:01:19.7]}
30... Ra8 {[%clk 0:00:15.4]} 31. Rxa8 {[%clk 0:01:18.5]} 31... Rxa8 {[%clk
0:00:17.3]} 32. Kh2 {[%clk 0:01:02.3]} 32... Kf8 {[%clk 0:00:12.9]} 33. g4
{[%clk 0:00:57.2]} 33... Ke8 {[%clk 0:00:13.9]} 34. Kg3 {[%clk 0:00:57.8]} 34...
Kd8 {[%clk 0:00:15]} 35. Rb1 {[%clk 0:00:44.7]} 35... Kc7 {[%clk 0:00:14.2]} 36.
Qd4 {[%clk 0:00:44]} 36... Qa3 {[%clk 0:00:14.9]} 37. Rb6 {[%clk 0:00:34.3]}
37... Be8 {[%clk 0:00:15.2]} 38. Rd6 {[%clk 0:00:30.4]} 38... Qa7 {[%clk
0:00:15.6]} 39. Qf4 {[%clk 0:00:28]} 39... Rd8 {[%clk 0:00:16.7]} 40. Rxd8
{[%clk 0:00:23.2]} 40... Kxd8 {[%clk 0:00:18.6]} 41. Qf6+ {[%clk 0:00:24.1]}
41... Qe7 {[%clk 0:00:20.2]} 42. Qh8 {[%clk 0:00:24.5]} 42... Qg5 {[%clk
0:00:21.2]} 43. Be2 {[%clk 0:00:22.1]} 43... Qxh6 {[%clk 0:00:21.2]} 44. Qf6+
{[%clk 0:00:22.8]} 44... Kd7 {[%clk 0:00:22.6]} 45. Qh8 {[%clk 0:00:21.4]} 45...
Qh1 {[%clk 0:00:21.9]} 46. Qf8 {[%clk 0:00:19.6]} 46... Qg1+ {[%clk 0:00:22.5]}
47. Kf3 {[%clk 0:00:20.5]} 47... Qh1+ {[%clk 0:00:23.4]} 48. Kg3 {[%clk
0:00:21.6]} 48... Qg1+ {[%clk 0:00:24.7]} 49. Kf3 {[%clk 0:00:22.5]} 49... Qh2
{[%clk 0:00:18.8]} 50. Qd6+ {[%clk 0:00:22.2]} 50... Kc8 {[%clk 0:00:20.2]} 51.
Qc5+ {[%clk 0:00:20.8]} 51... Kd8 {[%clk 0:00:21.6]} 52. Qd6+ {[%clk 0:00:20.9]}
52... Bd7 {[%clk 0:00:22.5]} 53. Qb8+ {[%clk 0:00:21.1]} 53... Ke7 {[%clk
0:00:23.4]} 54. Qd6+ {[%clk 0:00:22]} 54... Kd8 {[%clk 0:00:24.8]} 55. Qb8+
{[%clk 0:00:22.8]} 55... Bc8 {[%clk 0:00:26.3]} 56. Qd6+ {[%clk 0:00:22.9]}
56... Ke8 {[%clk 0:00:27.8]} 57. Qc7 {[%clk 0:00:20.9]} 57... Qh3+ {[%clk
0:00:27.9]} 58. Kf4 {[%clk 0:00:15.3]} 58... Qh2+ {[%clk 0:00:27.6]} 59. Kf3
{[%clk 0:00:16]} 59... Qh3+ {[%clk 0:00:20.2]} 60. Kf4 {[%clk 0:00:16.7]} 60...
h6 {[%clk 0:00:21.5]} 61. Qxc8+ {[%clk 0:00:16.7]} 61... Ke7 {[%clk 0:00:22.9]}
62. Qc7+ {[%clk 0:00:16.9]} 62... Kf8 {[%clk 0:00:23.7]} 63. Qd8+ {[%clk
0:00:17.8]} 63... Kg7 {[%clk 0:00:24.7]} 64. Qf6+ {[%clk 0:00:18]} 64... Kg8
{[%clk 0:00:26]} 65. g5 {[%clk 0:00:16.8]} 65... Qh2+ {[%clk 0:00:26.2]} 66. Kf3
{[%clk 0:00:17.3]} 66... Qh3+ {[%clk 0:00:26.9]} 67. Kf4 {[%clk 0:00:18]} 67...
Qh4+ {[%clk 0:00:11]} 68. Kf3 {[%clk 0:00:16.6]} 68... Qh3+ {[%clk 0:00:12.2]}
69. Kf4 {[%clk 0:00:17.2]} 69... h5 {[%clk 0:00:13.8]} 70. Qd8+ {[%clk
0:00:16.6]} 70... Kh7 {[%clk 0:00:15]} 71. Qf6 {[%clk 0:00:17.4]} 71... Qh2+
{[%clk 0:00:12.3]} 72. Kf3 {[%clk 0:00:17.8]} 72... Qh3+ {[%clk 0:00:11.9]} 73.
Kf4 {[%clk 0:00:18.9]} 73... Qh2+ {[%clk 0:00:12.3]} 74. Kf3 {[%clk 0:00:19.8]}
74... Qh3+ {[%clk 0:00:06.7]} 75. Kf4 {[%clk 0:00:20]} 1/2-1/2